Cogmind - Beta 14 @@@ ROGUE MODE // 2025.03.09 @ 17:47:43 Player: toydarian Result: Destroyed by H-66 Slayer with Heavy Assault Rifle Performance ------------- Evolutions (4) 2000 Regions Visited (13) 2600 Robots Destroyed (137) 685 Value Destroyed (4978) 4978 Prototype IDs (30) 600 Alien Tech Used (0) 0 Bonus (1306) 1306 TOTAL SCORE: 12169 Bonus ------- High Alert Combat Kills 213 Follower Combat Kills 597 Network Hubs Disabled 200 Met Data Miner 300 Friendly Fire -4 Cogmind --------- Core Integrity 0/850 Matter 224/300 Energy 25/100 System Corruption 0% Temperature Cool (0) Movement Core (350) Ox6 Location -6/Hub_04(d) Parts ------- > --- POWER (1) -------- (None) > --- PROPULSION (4) --- (None) > --- UTILITY (6) ------ Large Storage Unit Improved Sensor Array Advanced Signal Interpreter 0b10 Decoder Chip [Generic] Improved Hacking Suite System Guard > --- WEAPON (4) ------- (None) > --- INVENTORY (15) --- Nuclear Core Gravmag System Cooled Aerolev Unit High-capacity Battery (250) Advanced Targeting Computer EM Disruption Field Improved System Shield KE Penetrator Ripper Peak State ------------ > --- POWER ------------ Heavy Deuterium Engine > --- PROPULSION ------- Armored Treads Armored Wheel Armored Huge Wheel > --- UTILITY ---------- High-capacity Storage Unit Advanced Sensor Array Advanced Signal Interpreter 0b10 Decoder Chip [Generic] Improved Target Analyzer EM Disruption Field > --- WEAPON ----------- High-powered Shock Rifle Coil Gun Coil Gun Hypervelocity Gauss Rifle > --- INVENTORY -------- Micro Nuclear Core Medium Treads Gravmag System Gravmag System Cooled Aerolev Unit Cooling System High-capacity Battery Improved Sensor Array Improved Signal Interpreter Advanced Targeting Computer Hardened Light Armor Plating Improved System Shield Improved EM Pulse Cannon Improved Proton Missile Launcher Heavy Mace [Rating: 69] Favorites ----------- Power Heavy Ion Engine Engine Heavy Ion Engine Power Core Nuclear Core Propulsion Wheel Treads Medium Treads Leg Carbon-fiber Leg Wheel Wheel Hover Unit Gravmag System Utility Large Storage Unit Device Improved Sensor Array Storage Large Storage Unit Processor Visual Processing Unit Hackware Hacking Suite Protection Improved Light Armor Plating Weapon Shock Rifle Energy Gun Shock Rifle Energy Cannon Improved EM Pulse Cannon Ballistic Gun Enhanced Autogun Launcher Grenade Launcher Impact Weapon Maul Slashing Weapon Ripper Build | -11 -10 -9 -8 -7 -7 -7 -7 -6 -6 -6 -6 -6 -6 ------- Run | Yrd Mat Mat Mat Fac Low Low Dat Pro Fac Ext Cet Arc Hub Slots Evolved 8 | . . 2 2 2 . . . . 2 . . . . Power . | . . . . . . . . . . . . . . Propulsion 2 | . . . . . . . . . 2 . . . . Utility 4 | . . . 2 2 . . . . . . . . . Weapon 2 | . . 2 . . . . . . . . . . . Parts Attached 195 | 8 9 27 14 4 . 2 . 11 42 34 11 16 17 Power 13 | 1 1 1 1 2 . 1 . 1 2 2 1 . . Engine 9 | 1 1 1 . 1 . 1 . 1 2 . 1 . . Core 4 | . . . 1 1 . . . . . 2 . . . Reactor . | . . . . . . . . . . . . . . Propulsion 41 | 2 3 5 3 . . . . 2 13 7 1 5 . Treads 15 | . . 1 . . . . . 1 5 3 . 5 . Leg 2 | . . . . . . . . . . 2 . . . Wheel 19 | 2 3 4 3 . . . . . 5 2 . . . Hover 5 | . . . . . . . . 1 3 . 1 . . Flight . | . . . . . . . . . . . . . . Utility 59 | 3 2 3 4 2 . . . 3 16 10 5 4 7 Device 23 | 2 . . 1 1 . . . 2 8 4 1 1 3 Storage 9 | 1 1 2 1 . . . . . 1 2 1 . . Processor 9 | . . 1 1 1 . . . . 3 1 1 . 1 Hackware 2 | . . . . . . . . . 1 . . . 1 Protection 16 | . 1 . 1 . . . . 1 3 3 2 3 2 Artifact . | . . . . . . . . . . . . . . Weapon 82 | 2 3 18 6 . . 1 . 5 11 15 4 7 10 Energy Gun 13 | . . 1 4 . . 1 . 1 3 2 . . 1 Energy Cannon 1 | . . . . . . . . . . 1 . . . Ballistic Gun 47 | 2 3 15 1 . . . . 3 5 8 2 5 3 Ballistic Cannon . | . . . . . . . . . . . . . . Launcher 11 | . . 1 . . . . . 1 2 1 2 . 4 Special Weapon . | . . . . . . . . . . . . . . Impact Weapon 4 | . . 1 1 . . . . . 1 1 . . . Slashing Weapon 6 | . . . . . . . . . . 2 . 2 2 Piercing Weapon . | . . . . . . . . . . . . . . Special Melee Weapon . | . . . . . . . . . . . . . . Unidentified Prototypes 7 | . . 1 . 1 . . . . . 1 2 . 2 Parts Lost 53 | . 1 3 . . . 2 . 18 4 9 1 3 12 Power 5 | . . . . . . 1 . 2 . 1 . . 1 Propulsion 17 | . . 2 . . . . . 4 . 4 1 2 4 Utility 11 | . 1 1 . . . . . 3 3 . . . 3 Weapon 20 | . . . . . . 1 . 9 1 4 . 1 4 Highest Loss Streak 8 | . 1 1 . . . 2 . 6 2 4 1 3 8 To Critical Strikes . | . . . . . . . . . . . . . . Average Slot Usage (%) 89 | . 99 99 95 100 100 99 100 71 78 95 99 98 95 Engine 4 | . 14 11 3 . . 7 7 4 4 . 3 6 5 Core 1 | . . . 5 7 7 . . . . 5 2 . . Treads 4 | . . . . . . . . 3 5 9 6 20 24 Wheel 10 | . 28 21 18 15 15 15 15 . 8 11 6 1 . Device 8 | . 6 . 3 15 15 15 15 6 8 11 5 5 10 Storage 7 | . 14 11 9 7 7 7 7 7 6 6 6 6 6 Processor 18 | . . 7 14 23 23 23 23 23 22 20 20 20 20 Protection 2 | . 7 3 6 . . . . 3 . . 5 6 2 Energy Gun 6 | . . . 17 23 23 22 23 . 2 . . . 1 Ballistic Gun 14 | . 28 43 15 . . . . 6 9 20 24 24 21 Launcher 1 | . . . . . . . . 3 1 . . . . Impact Weapon 3 | . . . 3 7 7 7 7 6 3 1 . . . Peak Build Rating 69 | 7 8 20 27 35 34 34 34 40 67 69 69 69 68 Average Rating 36 | 6 7 16 24 33 34 33 34 27 48 57 63 65 60 On Entrance 33 | . 7 8 19 27 34 34 34 34 15 67 54 69 66 Naked Turns . | . . . . . . . . . . . . . . Heaviest Build 74 | 12 32 40 44 42 42 43 43 45 72 74 58 58 58 Greatest Support 112 | 32 32 23 20 20 20 20 20 28 112 48 32 89 89 Greatest Overweight (x) 8 | . 1 1 2 2 2 2 2 8 6 4 3 3 1 Average Overweight (x) 1 | . . 1 2 2 2 2 2 2 1 1 2 . . Largest Inventory Capacity 20 | 8 15 15 15 15 15 15 15 15 20 20 15 15 15 Average Capacity 15 | 7 13 15 15 15 15 15 15 15 15 19 15 15 15 Most Carried 20 | 8 15 15 15 15 15 15 14 15 15 20 15 15 15 Average Carried 14 | 4 11 14 14 14 15 13 14 12 13 17 14 14 14 Final Capacity 20 | 8 15 15 15 15 15 15 15 15 20 15 15 15 15 Final Carried 15 | 8 14 15 15 15 15 14 14 12 15 15 15 15 9 Class Distribution -------------------- 35% | Assassin 21% | Mutant 15% | Scavenger-Skirmisher 11% | Skirmisher 5% | Scavenger-Tank 4% | Gunner Dominant Class ---------------- Mutant | -10/Materials Scavenger-Skirmisher | -9/Materials Gunner | -8/Materials Assassin | -7/Factory Assassin | -7/Lower Caves Assassin | -7/Lower Caves Assassin | -7/Data Miner Assassin | -6/Proximity Caves Skirmisher | -6/Factory Scavenger-Skirmisher | -6/Extension Scavenger-Skirmisher | -6/Cetus Scavenger-Tank | -6/Archives Scavenger-Skirmisher | -6/Hub_04(d) Resources | -11 -10 -9 -8 -7 -7 -7 -7 -6 -6 -6 -6 -6 -6 ----------- Run | Yrd Mat Mat Mat Fac Low Low Dat Pro Fac Ext Cet Arc Hub Matter Collected 4738 | 389 523 731 366 20 20 15 . 239 501 1007 167 361 399 Remotely . | . . . . . . . . . . . . . . Salvage Created 6058 | 147 355 1035 627 20 70 221 . 501 219 1267 266 322 1008 Parts 303 | 16 25 66 37 3 2 7 . 18 14 49 10 16 40 Haulers Intercepted 3 | . 1 . 1 . . . . . . . . . 1 Recyclers Shooed 9 | . . 1 . . . . . . 1 7 . . . Parts Field Recycled . | . . . . . . . . . . . . . . Retrieved Matter . | . . . . . . . . . . . . . . Parts Self-Destructed 30 | . . . . . 6 4 . 20 . . . . . Prevented 8 | . . . . . . 2 . 6 . . . . . Kills | -11 -10 -9 -8 -7 -7 -7 -7 -6 -6 -6 -6 -6 -6 ------- Run | Yrd Mat Mat Mat Fac Low Low Dat Pro Fac Ext Cet Arc Hub Combat Hostiles Destroyed 95 | . 8 26 9 . 1 4 . 11 4 19 3 4 6 Guns 69 | . 8 23 6 . 1 . . 4 4 15 1 4 3 AOE 15 | . . 3 1 . . 3 . 4 . 1 . . 3 Classes Destroyed 16 | 3 4 2 1 . . . . 3 . 2 . . 1 Worker 8 | 2 . . . . . . . . . . . . 6 Builder 5 | . . . . . . . . . . 1 . . 4 Tunneler 3 | 3 . . . . . . . . . . . . . Hauler 3 | . 1 . 1 . . . . . . . . . 1 Recycler 7 | 1 . 1 . . . . . . . 2 . . 3 Minesweeper 1 | . . . . . . . . 1 . . . . . Operator 5 | . . 2 . 1 . . . . . 1 . . 1 Watcher 10 | . 1 2 2 . . . . . 2 1 1 . 1 Swarmer 23 | . 3 10 . . . . . 4 . 6 . . . Grunt 35 | . 5 10 5 . . 4 . 4 . 6 . . 1 Duelist 1 | . . . . . . . . 1 . . . . . Sentry 21 | . . 6 3 . 1 . . 1 1 4 . 4 1 Specialist 2 | . . . . . . . . . . . . . 2 Hunter 2 | . . . 1 . . . . . . . . . 1 Programmer 6 | . . . . . . . . 1 3 1 . . 1 Behemoth 2 | . . . . . . . . . . 2 . . . Cetus Guard 3 | . . . . . . . . . . . 3 . . Best Kill Streak 19 | 2 2 7 4 1 1 4 . 3 1 6 4 2 19 Combat Bots Only 6 | . 2 6 2 . 1 4 . 3 1 5 3 2 3 Max Kills in Single Turn 15 | 1 1 3 1 1 1 3 . 3 1 2 1 1 15 Gunslinging 1 | . . . . . . . . . . 1 . . . Exploded 3 | . . 3 1 . . 3 . 3 . 1 . . 1 Melee . | . . . . . . . . . . . . . . Uniques/NPCs Destroyed . | . . . . . . . . . . . . . . Combat | -11 -10 -9 -8 -7 -7 -7 -7 -6 -6 -6 -6 -6 -6 -------- Run | Yrd Mat Mat Mat Fac Low Low Dat Pro Fac Ext Cet Arc Hub Hostile Shots Fired 861 | . 32 97 34 . 10 16 . 174 97 194 42 42 123 Missed 266 | . 5 32 12 . 5 3 . 52 31 69 15 9 33 Damage Taken 9514 | . 275 765 321 . 43 230 . 2020 1014 1775 783 773 1515 Core 1637 | . 74 76 44 . 12 54 . 521 437 71 55 47 246 Absorbed by Shields 129 | . . . . . . . . . . 129 . . . Ignored by Resistances 32 | . . . . . . . . 28 4 . . . . Core Remaining (%) 71 | 100 70 81 92 . . . . 16 . . . . . Volleys Fired 289 | 17 32 54 24 1 2 5 . 36 22 50 9 17 20 Largest 4 | 2 2 4 4 3 3 3 . 3 3 4 4 4 4 Hottest 200 | 40 40 99 200 150 150 150 . 150 106 192 128 118 151 Shots Fired 836 | 34 64 217 88 3 6 14 . 60 43 162 24 68 53 Gun 804 | 34 64 215 88 3 6 14 . 57 43 148 18 68 46 Cannon 10 | . . . . . . . . . . 10 . . . Launcher 22 | . . 2 . . . . . 3 . 4 6 . 7 Special . | . . . . . . . . . . . . . . Kinetic 681 | 34 64 215 44 . . . . 36 37 128 18 68 37 Thermal . | . . . . . . . . . . . . . . Explosive 12 | . . 2 . . . . . 3 . . . . 7 Electromagnetic 143 | . . . 44 3 6 14 . 21 6 34 6 . 9 Robot Hit Streak 13 | 9 12 9 10 5 7 7 . 10 7 6 5 13 11 Robot Miss Streak 8 | 4 4 5 6 . 1 4 . 4 5 8 1 2 5 Penetration Max 1 | . . . 1 . . . . . . 1 . . 1 Secondary Targets 9 | . 1 2 . . . 1 . 1 . 2 . 2 . Max Gunslinging Chain 1 | . 1 1 . . . 1 . 1 . 1 . 1 . Shots Hit Robots 501 | 21 38 99 51 1 5 8 . 41 33 96 15 55 38 Core Hits 256 | 8 18 52 20 1 2 3 . 21 19 48 16 15 33 Critical Kills 5 | . . . . . . . . . 1 3 . . 1 Critical Parts Destroyed 18 | . . . . . . . . 3 1 10 1 1 2 Critical Strikes 29 | . . . 1 . 1 . . 5 3 14 1 1 3 Destroy 20 | . . . . . . . . 1 3 11 1 1 3 Corrupt 5 | . . . 1 . 1 . . 2 . 1 . . . Smash 4 | . . . . . . . . 2 . 2 . . . Melee Attacks 49 | . . 1 3 3 1 1 . 10 15 5 . 8 2 Impact 38 | . . 1 3 3 1 1 . 10 15 4 . . . Slashing 11 | . . . . . . . . . . 1 . 8 2 Piercing . | . . . . . . . . . . . . . . Sneak Attacks 2 | . . . . . . . . . . 2 . . . Combat Hostiles . | . . . . . . . . . . . . . . Follow-up Attacks . | . . . . . . . . . . . . . . Damage Inflicted 13206 | 234 427 1455 839 21 149 327 . 1335 694 2221 992 987 3525 Guns 7763 | 234 427 1262 810 21 81 141 . 656 652 1511 253 880 835 Cannons 116 | . . . . . . . . . . 116 . . . Explosions 4538 | . . 193 29 . 68 186 . 378 . 255 739 . 2690 Melee 789 | . . . . . . . . 301 42 339 . 107 . Ramming . | . . . . . . . . . . . . . . Kinetic 6624 | 234 427 1262 386 . . . . 452 626 1340 253 880 764 Thermal 480 | . . . 29 . 68 186 . 137 . . . . 60 Explosive 1016 | . . 193 . . . . . 241 . . . . 582 Electromagnetic 4297 | . . . 424 21 81 141 . 204 26 542 739 . 2119 Impact 640 | . . . . . . . . 301 42 297 . . . Slashing 149 | . . . . . . . . . . 42 . 107 . Piercing . | . . . . . . . . . . . . . . Highest Corruption 4 | . . 3 . . . . . . 4 1 . . . Average Corruption 2 | . . 3 . . . . . . 3 1 . . . Corruption Purged 5 | . . . . . . . . . 5 . . . . Corruption Blocked . | . . . . . . . . . . . . . . Effects 26 | . . 5 . . . . . . 10 11 . . . Message Errors 4 | . . 1 . . . . . . 3 . . . . Matter Fused 12 | . . 2 . . . . . . 5 5 . . . Heat Flow Errors 2 | . . . . . . . . . . 2 . . . Energy Discharges 3 | . . . . . . . . . . 3 . . . Parts Rejected 1 | . . . . . . . . . . 1 . . . Data Loss (minor) 1 | . . 1 . . . . . . . . . . . Data Loss (major) 1 | . . . . . . . . . 1 . . . . Misfires 2 | . . 1 . . . . . . 1 . . . . Overload Shots . | . . . . . . . . . . . . . . Overflow Damage 586 | . . 18 . . . . . 126 7 275 19 . 141 Projectiles . | . . . . . . . . . . . . . . Explosions 180 | . . 18 . . . . . 2 . . 19 . 141 Melee 406 | . . . . . . . . 124 7 275 . . . Knockbacks 2 | . . . . . . . . 1 1 . . . . Impact 2 | . . . . . . . . 1 1 . . . . Kinetic . | . . . . . . . . . . . . . . Secondary . | . . . . . . . . . . . . . . Self-Inflicted Damage 176 | . . . . . . 17 . . . . . . 159 Shots 3 | . . . . . . 1 . . . . . . 2 Rammed . | . . . . . . . . . . . . . . Targets Rammed . | . . . . . . . . . . . . . . Kicked . | . . . . . . . . . . . . . . Crushed . | . . . . . . . . . . . . . . Highest Temperature 420 | . 18 156 270 3 12 45 . 18 90 420 144 404 205 Average Temperature 64 | . 7 38 67 2 6 18 . 11 30 107 60 148 73 Received Heat Transfer 2148 | . 93 219 108 . 15 135 . 543 120 453 18 171 273 Effects 6 | . . . 1 . . . . . . 3 . 2 . Shutdowns 1 | . . . . . . . . . . . . 1 . Interference 4 | . . . 1 . . . . . . 3 . . . Damage (minor) 1 | . . . . . . . . . . . . 1 . Siege Activations . | . . . . . . . . . . . . . . Robots Corrupted 14 | . . . 2 . . 1 . 3 1 4 2 . 1 Combat Hostiles 11 | . . . 2 . . 1 . 3 . 3 2 . . Parts Fried 35 | . . . 3 . . 1 . 6 2 8 3 . 12 Impact Corruptions 12 | . . . . . . . . 4 1 7 . . . Robots Melted . | . . . . . . . . . . . . . . Combat Hostiles . | . . . . . . . . . . . . . . Parts Melted . | . . . . . . . . . . . . . . Heat Transferred 450 | . . . 50 . 50 200 . 100 . . . . 50 Parts Sabotaged . | . . . . . . . . . . . . . . Parts Stolen . | . . . . . . . . . . . . . . Parts Stripped . | . . . . . . . . . . . . . . Power Chain Reactions 6 | . . . 1 . 1 1 . 1 . 1 . . 1 Alert | -11 -10 -9 -8 -7 -7 -7 -7 -6 -6 -6 -6 -6 -6 ------- Run | Yrd Mat Mat Mat Fac Low Low Dat Pro Fac Ext Cet Arc Hub Peak Influence 698 | 30 167 690 586 242 . . . . 158 270 212 182 698 Initial 291 | . 19 19 291 224 . . . . 25 . 104 68 . Average 167 | 13 71 439 436 230 . . . . 33 147 191 120 75 Maximum Alert Level 2 | . . 2 2 1 . . . . . 1 1 . 2 Low Security (%) 68 | 100 100 18 . . . . . . 100 74 19 100 91 Level 1 16 | . . 13 33 100 . . . . . 25 80 . . Level 2 15 | . . 68 66 . . . . . . . . . 8 Level 3 . | . . . . . . . . . . . . . . Level 4 . | . . . . . . . . . . . . . . Level 5 . | . . . . . . . . . . . . . . High Security . | . . . . . . . . . . . . . . Max Security . | . . . . . . . . . . . . . . Squads Dispatched 22 | . . 6 2 1 . . . . 5 4 . . 4 Investigation 5 | . . 3 2 . . . . . . . . . . Extermination 5 | . . . . 1 . . . . 3 . . . 1 Reinforcement 11 | . . 3 . . . . . . 1 4 . . 3 Assault . | . . . . . . . . . . . . . . Garrison 1 | . . . . . . . . . 1 . . . . Intercept . | . . . . . . . . . . . . . . Searches Triggered . | . . . . . . . . . . . . . . Construction Impeded 2 | . . . . . . . . . . 1 . . 1 Haulers Reinforced . | . . . . . . . . . . . . . . Active Scanning Responses . | . . . . . . . . . . . . . . Cargo Convoy Interrupts . | . . . . . . . . . . . . . . Stealth | -11 -10 -9 -8 -7 -7 -7 -7 -6 -6 -6 -6 -6 -6 --------- Run | Yrd Mat Mat Mat Fac Low Low Dat Pro Fac Ext Cet Arc Hub Distress Signals 15 | . 1 4 2 . . . . . 1 4 2 . 1 Communications Jammed . | . . . . . . . . . . . . . . Distress Signals . | . . . . . . . . . . . . . . Times Spotted 179 | . 13 42 16 2 4 4 . 19 14 35 10 4 16 Peak Tracking Total 8 | . 3 7 3 3 3 4 . 3 3 8 5 2 7 Tactical Retreats 16 | . 1 2 2 . . . . 3 1 3 2 . 2 Traps | -11 -10 -9 -8 -7 -7 -7 -7 -6 -6 -6 -6 -6 -6 ------- Run | Yrd Mat Mat Mat Fac Low Low Dat Pro Fac Ext Cet Arc Hub Traps Triggered 8 | . . 2 . . . . . . 2 3 . . 1 Indirectly 1 | . . . . . . . . . . . . . 1 Trap Hack Attempts . | . . . . . . . . . . . . . . Triggered . | . . . . . . . . . . . . . . Disarmed . | . . . . . . . . . . . . . . Reprogrammed . | . . . . . . . . . . . . . . Reused 4 | . . . . . . . . 2 2 . . . . Traps Extracted . | . . . . . . . . . . . . . . Installed 4 | . . . . . . . . 2 2 . . . . Triggered 5 | . . . . . . . . 3 2 . . . . Most Traps Carried 3 | . . . . . . . . 3 2 . . . . Machines | -11 -10 -9 -8 -7 -7 -7 -7 -6 -6 -6 -6 -6 -6 ---------- Run | Yrd Mat Mat Mat Fac Low Low Dat Pro Fac Ext Cet Arc Hub Machines Disabled 30 | . . 2 . . . . . . 5 3 . 1 19 Max in Single Turn 15 | . . 1 . . . . . . . 1 . 1 15 Network Hub 1 | . . . . . . . . . . . . . 1 Machines Repaired . | . . . . . . . . . . . . . . Machines Dismantled . | . . . . . . . . . . . . . . Machines Sabotaged . | . . . . . . . . . . . . . . Overloaded Fab Kills . | . . . . . . . . . . . . . . Hacking | -11 -10 -9 -8 -7 -7 -7 -7 -6 -6 -6 -6 -6 -6 --------- Run | Yrd Mat Mat Mat Fac Low Low Dat Pro Fac Ext Cet Arc Hub Machines Accessed 39 | . 6 8 4 2 . . 4 . 5 8 2 . . Terminals 33 | . 6 8 4 2 . . . . 4 7 2 . . Fabricators . | . . . . . . . . . . . . . . Repair Stations . | . . . . . . . . . . . . . . Recycling Units 1 | . . . . . . . . . . 1 . . . Scanalyzers 1 | . . . . . . . . . 1 . . . . Garrison Access . | . . . . . . . . . . . . . . Total Hacks 138 | . 20 27 15 6 . . 34 . 9 20 7 . . Successful 81 | . 8 12 8 2 . . 34 . 4 11 2 . . Failed 57 | . 12 15 7 4 . . . . 5 9 5 . . Catastrophic 14 | . 3 2 1 1 . . . . 2 4 1 . . Database Lockouts . | . . . . . . . . . . . . . . Manual 70 | . 16 22 9 5 . . . . 6 12 . . . Terminals 101 | . 20 27 15 6 . . . . 8 18 7 . . Fabricators . | . . . . . . . . . . . . . . Repair Stations . | . . . . . . . . . . . . . . Recycling Units 2 | . . . . . . . . . . 2 . . . Scanalyzers 1 | . . . . . . . . . 1 . . . . Garrison Access . | . . . . . . . . . . . . . . Terminal Hacks 58 | . 4 7 5 . . . 34 . . 6 2 . . Record 14 | . . . . . . . 11 . . 1 2 . . Part Schematic 13 | . . . . . . . 13 . . . . . . Robot Schematic 7 | . . . . . . . 7 . . . . . . Prototype ID Bank 13 | . 2 5 2 . . . 3 . . 1 . . . Open Door 1 | . . . . . . . . . . 1 . . . Level Access Points 1 | . . 1 . . . . . . . . . . . Branch Access Points 1 | . . . 1 . . . . . . . . . . Alert Level 4 | . 1 . 1 . . . . . . 2 . . . Locate Traps 3 | . 1 1 1 . . . . . . . . . . Zone Layout 1 | . . . . . . . . . . 1 . . . Fabricator Hacks . | . . . . . . . . . . . . . . Repair Station Hacks . | . . . . . . . . . . . . . . Recycling Unit Hacks . | . . . . . . . . . . . . . . Scanalyzer 1 | . . . . . . . . . 1 . . . . Insert Component 1 | . . . . . . . . . 1 . . . . Garrison Access Hacks . | . . . . . . . . . . . . . . Unauthorized Hacks 22 | . 4 5 3 2 . . . . 3 5 . . . Terminals 21 | . 4 5 3 2 . . . . 3 4 . . . Assimilate 1 | . . . . . . . . . 1 . . . . Botnet 20 | . 4 5 3 2 . . . . 2 4 . . . Fabricators . | . . . . . . . . . . . . . . Repair Stations . | . . . . . . . . . . . . . . Recycling Units 1 | . . . . . . . . . . 1 . . . Mask 1 | . . . . . . . . . . 1 . . . Scanalyzers . | . . . . . . . . . . . . . . Garrison Access . | . . . . . . . . . . . . . . Data Cores Recovered 2 | . . . . 1 . . . . . 1 . . . Used 1 | . . . . . . . . . . 1 . . . Hacking Detections 32 | . 6 7 4 2 . . . . 4 7 2 . . Full Trace Events 6 | . 1 3 2 . . . . . . . . . . Feedback Events . | . . . . . . . . . . . . . . Feedback Blocked . | . . . . . . . . . . . . . . Robot Schematics Acquired 7 | . . . . . . . 7 . . . . . . Robots Built . | . . . . . . . . . . . . . . Authchips . | . . . . . . . . . . . . . . Time . | . . . . . . . . . . . . . . Total Robot Build Rating . | . . . . . . . . . . . . . . Part Schematics Acquired 13 | . . . . . . . 13 . . . . . . Parts Built . | . . . . . . . . . . . . . . Authchips . | . . . . . . . . . . . . . . Time . | . . . . . . . . . . . . . . Total Part Build Rating . | . . . . . . . . . . . . . . Parts Repaired . | . . . . . . . . . . . . . . Time . | . . . . . . . . . . . . . . Parts Recycled . | . . . . . . . . . . . . . . Recycled Matter . | . . . . . . . . . . . . . . Retrieved Matter . | . . . . . . . . . . . . . . Retrieved Components . | . . . . . . . . . . . . . . Parts Scanalyzed . | . . . . . . . . . . . . . . Part Schematics Acquired . | . . . . . . . . . . . . . . Parts Damaged . | . . . . . . . . . . . . . . Bothacking | -11 -10 -9 -8 -7 -7 -7 -7 -6 -6 -6 -6 -6 -6 ------------ Run | Yrd Mat Mat Mat Fac Low Low Dat Pro Fac Ext Cet Arc Hub Used RIF Installer . | . . . . . . . . . . . . . . Robots Hacked . | . . . . . . . . . . . . . . Non-combat . | . . . . . . . . . . . . . . Combat . | . . . . . . . . . . . . . . Robot Hacks Applied . | . . . . . . . . . . . . . . Relay Couplers Released . | . . . . . . . . . . . . . . Fabnet Peak Effective % . | . . . . . . . . . . . . . . Robots Rewired . | . . . . . . . . . . . . . . Allies Hacked . | . . . . . . . . . . . . . . Hacks Repelled . | . . . . . . . . . . . . . . Allies | -11 -10 -9 -8 -7 -7 -7 -7 -6 -6 -6 -6 -6 -6 -------- Run | Yrd Mat Mat Mat Fac Low Low Dat Pro Fac Ext Cet Arc Hub Total Allies 19 | . . . . . . . . 1 1 14 . . 3 Largest Group 7 | . . . . . . . . 1 1 7 7 . 3 Highest-Rated Group 321 | . . . . . . . . 96 96 321 191 . 93 Highest-Rated Ally 159 | . . . . . . . . 96 96 159 39 . 31 Total Orders . | . . . . . . . . . . . . . . Ally Attacks 151 | . . . . . . . . 10 11 83 33 . 14 Total Damage 3737 | . . . . . . . . 324 917 1659 583 . 254 Kills 18 | . . . . . . . . 3 4 9 1 . 1 Allies Corrupted 1 | . . . . . . . . . 1 . . . . Allies Melted . | . . . . . . . . . . . . . . Intel | -11 -10 -9 -8 -7 -7 -7 -7 -6 -6 -6 -6 -6 -6 ------- Run | Yrd Mat Mat Mat Fac Low Low Dat Pro Fac Ext Cet Arc Hub Robot Analysis Total . | . . . . . . . . . . . . . . Derelict Logs Recovered 6 | . . . . . 2 2 . 2 . . . . . Drone Launches . | . . . . . . . . . . . . . . Drone Recoveries . | . . . . . . . . . . . . . . Decoded 0b10 Intel 117 | . . . . . . . . . 49 41 5 6 16 Traps 16 | . . . . . . . . . 13 1 . . 2 Emergency Access 10 | . . . . . . . . . 6 2 . . 2 Items 63 | . . . . . . . . . 24 29 . 1 9 Machines 17 | . . . . . . . . . 2 8 3 3 1 Patrols 2 | . . . . . . . . . 2 . . . . Guards 2 | . . . . . . . . . 1 . . . 1 Exits 7 | . . . . . . . . . 1 1 2 2 1 Exploration | -11 -10 -9 -8 -7 -7 -7 -7 -6 -6 -6 -6 -6 -6 ------------- Run | Yrd Mat Mat Mat Fac Low Low Dat Pro Fac Ext Cet Arc Hub Turns Passed 13636 | 189 948 1127 627 309 1211 1179 102 2896 2081 1629 371 452 515 Spaces Moved 8801 | 117 763 891 445 263 1088 1050 93 1040 1345 1030 240 221 215 Core 367 | 1 . . . . . . . 272 94 . . . . Treads 1231 | . . 1 . . . . . 635 161 50 . 169 215 Legs 42 | . . . . . . . . . . 42 . . . Wheels 7161 | 116 763 890 445 263 1088 1050 93 133 1090 938 240 52 . Hover . | . . . . . . . . . . . . . . Flight . | . . . . . . . . . . . . . . Fastest Speed 50 | 50 90 95 110 110 110 110 110 110 90 110 115 145 160 Average Speed 134 | 99 101 95 110 110 110 110 110 264 131 127 138 156 160 Slowest Speed 450 | 100 105 240 110 110 110 110 110 450 350 320 145 160 240 Overloaded Moves . | . . . . . . . . . . . . . . Propulsion Burnouts . | . . . . . . . . . . . . . . Robots Hopped . | . . . . . . . . . . . . . . Cave-ins Triggered . | . . . . . . . . . . . . . . Exploration Rate (%) 62 | 5 98 68 34 9 93 94 73 81 32 94 73 91 24 Regions Visited 13 Branch Regions 8 Pre-discovered Areas 3 | . . . . . . 2 1 . . . . . . Known Exits Taken 10 | . . 1 . 1 1 1 1 1 1 1 1 1 . Unknown Exits Taken 3 | 1 1 . 1 . . . . . . . . . . Scrap Searched 10 | . . . . . 4 3 . 3 . . . . . Spaces Dug 23 | . . 1 3 1 1 1 . 1 14 . . 1 . Terrain Destroyed 337 | . . 14 3 1 11 4 . 25 14 11 . 5 249 Melee 23 | . . 1 3 1 1 1 . 1 14 . . 1 . Projectile 16 | . . . . . . . . . . 5 . 4 7 AOE 297 | . . 13 . . 10 3 . 24 . 5 . . 242 Terrain Rammed . | . . . . . . . . . . . . . . Walls Destroyed . | . . . . . . . . . . . . . . Machines Disabled . | . . . . . . . . . . . . . . Actions | -11 -10 -9 -8 -7 -7 -7 -7 -6 -6 -6 -6 -6 -6 --------- Run | Yrd Mat Mat Mat Fac Low Low Dat Pro Fac Ext Cet Arc Hub Total 9978 | 157 884 1050 522 275 1097 1062 92 1116 1598 1228 265 288 344 Wait 403 | . 54 37 15 . 4 . . 5 132 60 . 19 77 Move 8788 | 116 762 890 444 262 1087 1049 92 1039 1344 1029 239 220 215 Hop . | . . . . . . . . . . . . . . Pick Up 103 | 12 14 17 10 2 1 3 . 10 18 10 3 2 1 Fast Attach 53 | 7 1 6 1 1 . . . . 18 10 . 3 6 Attach 47 | . . 5 2 3 . 2 . 10 12 4 3 1 5 Detach 17 | . . 1 . 2 . . . . 7 3 1 . 3 Swap 95 | 1 8 16 11 . . . . 1 12 20 8 12 6 Drop 104 | 4 13 23 12 1 1 2 . 2 16 13 2 6 9 Fire 289 | 17 32 54 24 1 2 5 . 36 22 50 9 17 20 Melee 49 | . . 1 3 3 1 1 . 10 15 5 . 8 2 Ram . | . . . . . . . . . . . . . . Kick . | . . . . . . . . . . . . . . Crush . | . . . . . . . . . . . . . . Escape Stasis 24 | . . . . . . . . . . 24 . . . Rewire 1 | . . . . . . . . 1 . . . . . Trap 4 | . . . . . . . . 2 2 . . . . Miscellaneous 1 | . . . . . 1 . . . . . . . . Route ------- -11/Scrapyard -10/Materials (discovered 5 exits: *Mat x3 / [*Min] / [*Sub]) -9/Materials (discovered 5 exits: *Mat x3 / [*Min] / [*Sto]) -8/Materials -7/Factory -7/Lower Caves -7/Lower Caves (discovered 2 exits: *Fac / *Dat) -7/Data Miner -6/Proximity Caves -6/Factory (discovered 2 exits: *Low / *Ext) -6/Extension (discovered 3 exits: *Fac x2 / *Cet) -6/Cetus (discovered 3 exits: *Fac x2 / *Arc) -6/Archives (discovered 3 exits: *Fac / *Hub x2) -6/Hub_04(d) (discovered 1 exit: Fac) History --------- Turn | Location | Event 10 | -11/Scrapyard | Discovered new exit (range 15) 190 | -11/Scrapyard | Entered Materials 275 | -10/Materials | Discovered new exit (range 10) 308 | -10/Materials | Build established: Mutant 315 | -10/Materials | Discovered new exit (range 11) 526 | -10/Materials | Discovered new exit (range 4) 775 | -10/Materials | Discovered new exit (range 3) 890 | -10/Materials | Derelicts attacked the area 1058 | -10/Materials | Discovered new exit (range 7) 1138 | -10/Materials | Entered another Materials area 1138 | -9/Materials | Evolved 2 slots: Weapon x2 1406 | -9/Materials | Discovered new exit (range 15) 1435 | -9/Materials | Build established: Tank 1697 | -9/Materials | Discovered new exit (range 15) 1853 | -9/Materials | Discovered new exit (range 13) 1925 | -9/Materials | Build established: Scavenger-Skirmisher 2124 | -9/Materials | Discovered new exit (range 9) 2188 | -9/Materials | Identified exit to Materials 2265 | -9/Materials | Entered another Materials area 2265 | -8/Materials | Evolved 2 slots: Utility x2 2809 | -8/Materials | Discovered new exit (range 17) 2842 | -8/Materials | Build established: Gunner 2892 | -8/Materials | Entered Factory 2892 | -7/Factory | Evolved 2 slots: Utility x2 3182 | -7/Factory | Build established: Assassin 3192 | -7/Factory | Discovered new exit (range 9) 3200 | -7/Factory | Identified exit to Lower Caves 3201 | -7/Factory | Entered Lower Caves 3447 | -7/Lower Caves | Activated DRS Beacon 3650 | -7/Lower Caves | Encountered a Warlord checkpoint 4010 | -7/Lower Caves | Learned Factory terminal intel 4108 | -7/Lower Caves | Discovered new exit (range 13) 4118 | -7/Lower Caves | Attracted the attention of an 0b10 checkpoint 4134 | -7/Lower Caves | Learned Factory security intel 4143 | -7/Lower Caves | Identified exit to Lower Caves 4412 | -7/Lower Caves | Entered another Lower Caves area 4465 | -7/Lower Caves | Discovered new exit (range 12) 4479 | -7/Lower Caves | Identified exit to Factory 4745 | -7/Lower Caves | Learned location of Zion (-6) 5166 | -7/Lower Caves | Discovered new exit (range 10) 5181 | -7/Lower Caves | Identified exit to Data Miner 5591 | -7/Lower Caves | Entered Data Miner 5591 | -7/Data Miner | Discovered new exit (range 6) 5605 | -7/Data Miner | Identified exit to Proximity Caves 5617 | -7/Data Miner | Met Data Miner 5644 | -7/Data Miner | Learned location of Section 7 (-3) 5644 | -7/Data Miner | Acquired the access code to Warlord's prototype stash 5665 | -7/Data Miner | Received God Mode back door access code from Data Miner 5693 | -7/Data Miner | Entered Proximity Caves 5822 | -6/Proximity Caves | Lost 3 parts (1n2w) 5937 | -6/Proximity Caves | Lost 3 parts (1n1u1w) 6184 | -6/Proximity Caves | Learned Factory terminal intel 7221 | -6/Proximity Caves | Attracted the attention of an 0b10 checkpoint 7303 | -6/Proximity Caves | Build established: Mutant 7536 | -6/Proximity Caves | Core integrity fell below 50% 7546 | -6/Proximity Caves | Lost 6 parts (1p2n1u2w) 7636 | -6/Proximity Caves | Learned location of 1 exit from Lower Caves 7712 | -6/Proximity Caves | Discovered exit to Factory (range 10) 8210 | -6/Proximity Caves | Build established: Assassin 8406 | -6/Proximity Caves | Escorted by Enhanced Grunt 8413 | -6/Proximity Caves | Core integrity fell below 20% 8589 | -6/Proximity Caves | Entered Factory 8589 | -6/Factory | Accompanied by 1 ally 8589 | -6/Factory | Evolved 2 slots: Propulsion x2 8591 | -6/Factory | Loaded intel: 28 terminal locations 8704 | -6/Factory | Build established: Mutant 9461 | -6/Factory | Build established: Skirmisher 9503 | -6/Factory | Discovered new exit (range 12) 9514 | -6/Factory | Identified exit to Extension 9670 | -6/Factory | P-60 Hacker assimilated allied Administrator 5a 9849 | -6/Factory | Garrison activated, responded to threat 10054 | -6/Factory | Identified exit to Lower Caves 10330 | -6/Factory | Spotted B-75 Beast 10331 | -6/Factory | Core integrity fell below 50% 10670 | -6/Factory | Entered Extension 10676 | -6/Extension | Disrupted transfer network 10804 | -6/Extension | Rescued A7 10844 | -6/Extension | Rescued a captive Derelict 10845 | -6/Extension | Rescued a captive Derelict 10925 | -6/Extension | Rescued a captive Derelict 10939 | -6/Extension | Rescued a captive Derelict 10948 | -6/Extension | Rescued a captive Derelict 11184 | -6/Extension | Spotted B-75 Beast 11198 | -6/Extension | Destroyed B-75 Beast 11210 | -6/Extension | Spotted B-75 Beast 11259 | -6/Extension | Destroyed B-75 Beast 11294 | -6/Extension | Extracted ID and sensor layout for unrecognized location from A7's data core 11302 | -6/Extension | Lost 6 allies 11369 | -6/Extension | Lost 4 parts (1n3w) 11404 | -6/Extension | Identified exit to Factory 11812 | -6/Extension | Discovered new exit (range 16) 11814 | -6/Extension | Discovered exit to Factory (range 14) 11828 | -6/Extension | Identified exit to Cetus 11883 | -6/Extension | Rescued a captive Derelict 11893 | -6/Extension | Rescued a captive Derelict 11902 | -6/Extension | Rescued a captive Derelict 11904 | -6/Extension | Rescued a captive Derelict 11948 | -6/Extension | Build established: Scavenger-Skirmisher 11954 | -6/Extension | Rescued a captive Derelict 11954 | -6/Extension | Rescued a captive Derelict 12064 | -6/Extension | Rescued a captive Derelict 12065 | -6/Extension | Rescued a captive Derelict 12299 | -6/Extension | Entered Cetus 12299 | -6/Cetus | Accompanied by 7 allies 12315 | -6/Cetus | Spotted Cetus Guard 12315 | -6/Cetus | Spotted Cetus Guard 12317 | -6/Cetus | Spotted Cetus Guard 12318 | -6/Cetus | Spotted Cetus Guard 12327 | -6/Cetus | Destroyed Cetus Guard 12329 | -6/Cetus | Destroyed Cetus Guard 12338 | -6/Cetus | Allies destroyed Cetus Guard 12338 | -6/Cetus | Destroyed Cetus Guard 12403 | -6/Cetus | Discovered exit to Factory (range 15) 12595 | -6/Cetus | Identified exit to Archives 12627 | -6/Cetus | Spotted Cetus Guard 12627 | -6/Cetus | Spotted Cetus Guard 12631 | -6/Cetus | Spotted Cetus Guard 12637 | -6/Cetus | Spotted Cetus Guard 12670 | -6/Cetus | Entered Archives 12680 | -6/Archives | Lost 5 allies 12813 | -6/Archives | Lost 3 parts (2n1w) 12851 | -6/Archives | Identified exit to Hub_04(d) 12851 | -6/Archives | Unable to access archive contents 12953 | -6/Archives | Unable to access archive contents 12975 | -6/Archives | Unable to access archive contents 12981 | -6/Archives | Discovered exit to Hub_04(d) (range 15) 13032 | -6/Archives | Build established: Scavenger-Tank 13122 | -6/Archives | Entered Hub_04(d) 13318 | -6/Hub_04(d) | Found Prototype Launcher 13318 | -6/Hub_04(d) | Identified Scatter Rocket Array 13444 | -6/Hub_04(d) | Build established: Scavenger-Skirmisher 13565 | -6/Hub_04(d) | Lost 4 parts (1n1u2w) 13593 | -6/Hub_04(d) | Network Hub disabled 13594 | -6/Hub_04(d) | Core integrity fell below 20% 13619 | -6/Hub_04(d) | Spotted Lightning 13626 | -6/Hub_04(d) | Spotted Lightning 13629 | -6/Hub_04(d) | Spotted Lightning 13637 | -6/Hub_04(d) | Destroyed by H-66 Slayer with Heavy Assault Rifle Last Messages --------------- 13629_ Imp. Deuterium Engine destroyed. 13631_ The unstable cave ceiling collapses. 13631_ Penetrated by EMDS Slug. 13631_ Imp. Treads destroyed. 13631_ EMDS Slug penetrates 3Y-I7Q(g). 13631_ EMDS Slug penetrates Wall. 13632_ The unstable cave ceiling collapses. 13633_ Slug penetrates 3Y-I7Q(g). 13633_ 3Y-I7Q(g) destroyed. 13633_ EMDS Slug penetrates 2Z-UOW(g). 13633_ 2Z-UOW(g) destroyed. 13633_ Penetrated by EMDS Slug. 13633_ EMDS Slug penetrates Wall. 13633_ KE Penetrator destroyed. 13634_ Prc. Rocket Launcher destroyed. 13635_ Dropped Enh. Autogun. 13635_ Dropped Centrium Medium Armor Plating. 13636_ The unstable cave ceiling collapses. 13636_ Discarded Adv. Signal Interpreter. 13636_ U-05 Engineer destroyed. Map ----- +----------------------------------------------------+ | ?????????????????????????????????????????????????? | | ?????????????????????????????????????????????????? | | ?????????????????????????????????????????????????? | | ?????????????????????????????????????????????????? | | ?????????????????????????????????????????????????? | | ?????????????????????????????????????????????????? | | ?????????????????????????????????????????????????? | | ?????????????????????????????????????????????????? | | ???????????????